Cogmind - Beta 14 *** ADVENTURER MODE // 2024.08.31 @ 15:52:54 Player: slh Result: Destroyed by as-28347 with Assembled Rifle Performance ------------- Evolutions (0) 0 Regions Visited (2) 400 Robots Destroyed (8) 40 Value Destroyed (125) 125 Prototype IDs (0) 0 Alien Tech Used (0) 0 Bonus (0) 0 TOTAL SCORE: 565 Bonus ------- None Cogmind --------- Core Integrity 0/250 Matter 274/300 Energy 160/160 System Corruption 0% Temperature Cool (25) Movement Rolling (115) Ox1 Location -10/Mines Parts ------- > --- POWER (1) -------- Light Nuclear Core > --- PROPULSION (2) --- Aluminum Leg Compact Wheel > --- UTILITY (2) ------ Large Storage Unit > --- WEAPON (2) ------- Medium Laser Assault Rifle > --- INVENTORY (15) --- Ion Engine Aluminum Leg Aluminum Leg Flexi-carbon Leg Small Storage Unit High-capacity Storage Unit Medium Matter Pod (59) Peak State ------------ > --- POWER ------------ Light Nuclear Core > --- PROPULSION ------- Aluminum Leg Compact Wheel > --- UTILITY ---------- Large Storage Unit > --- WEAPON ----------- Small Laser Light Assault Rifle > --- INVENTORY -------- Ion Engine Aluminum Leg Aluminum Leg Aluminum Leg Compact Wheel Compact Wheel Small Storage Unit High-capacity Storage Unit Medium Matter Pod Small Laser [Rating: 9] Favorites ----------- Power Ion Engine Engine Ion Engine Power Core Light Nuclear Core Propulsion Aluminum Leg Leg Aluminum Leg Wheel Compact Wheel Utility Small Storage Unit Storage Small Storage Unit Protection Backup Plating I Weapon Small Laser Energy Gun Small Laser Ballistic Gun Light Assault Rifle Build | -11 -10 -10 ------- Run | Yrd Mat Min Slots Evolved . | . . . Power . | . . . Propulsion . | . . . Utility . | . . . Weapon . | . . . Parts Attached 20 | 6 3 11 Power 2 | 1 . 1 Engine 1 | 1 . . Core 1 | . . 1 Reactor . | . . . Propulsion 8 | 2 2 4 Treads . | . . . Leg 4 | 2 . 2 Wheel 4 | . 2 2 Hover . | . . . Flight . | . . . Utility 2 | 1 1 . Device . | . . . Storage 2 | 1 1 . Processor . | . . . Hackware . | . . . Protection . | . . . Artifact . | . . . Weapon 8 | 2 . 6 Energy Gun 6 | 2 . 4 Energy Cannon . | . . . Ballistic Gun 2 | . . 2 Ballistic Cannon . | . . . Launcher . | . . . Special Weapon . | . . . Impact Weapon . | . . . Slashing Weapon . | . . . Piercing Weapon . | . . . Special Melee Weapon . | . . . Unidentified Prototypes . | . . . Parts Lost 10 | . . 10 Power 1 | . . 1 Propulsion 4 | . . 4 Utility 1 | . . 1 Weapon 4 | . . 4 Highest Loss Streak 10 | . . 10 To Critical Strikes . | . . . Average Slot Usage (%) 91 | . 98 74 Engine 10 | . 14 3 Core 3 | . . 9 Leg 10 | . 12 7 Wheel 16 | . 15 18 Storage 14 | . 14 14 Protection 9 | . 12 3 Energy Gun 22 | . 28 10 Ballistic Gun 2 | . . 7 Peak Build Rating 9 | 6 8 9 Average Rating 6 | 5 7 7 On Entrance 4 | . 6 8 Naked Turns . | . . . Heaviest Build 28 | 12 28 28 Greatest Support 32 | 20 26 32 Greatest Overweight (x) 2 | . 1 2 Average Overweight (x) . | . . 1 Largest Inventory Capacity 15 | 8 15 15 Average Capacity 9 | 7 12 15 Most Carried 13 | 7 12 13 Average Carried 6 | 5 8 9 Final Capacity 15 | 8 15 15 Final Carried 12 | 6 12 7 Class Distribution -------------------- 100% | Mutant Dominant Class ---------------- Mutant | -10/Materials Mutant | -10/Mines Resources | -11 -10 -10 ----------- Run | Yrd Mat Min Matter Collected 403 | 260 30 113 Remotely . | . . . Salvage Created 490 | 72 257 161 Parts 17 | 3 14 . Haulers Intercepted 1 | . 1 . Recyclers Shooed 1 | . 1 . Parts Field Recycled . | . . . Retrieved Matter . | . . . Parts Self-Destructed . | . . . Prevented . | . . . Kills | -11 -10 -10 ------- Run | Yrd Mat Min Combat Hostiles Destroyed 15 | . 5 10 Guns 15 | . 5 10 Classes Destroyed 5 | 1 3 1 Hauler 1 | . 1 . Recycler 2 | 1 1 . Swarmer 3 | . 3 . Grunt 2 | . 2 . Assembled 10 | . . 10 Best Kill Streak 8 | 1 4 8 Combat Bots Only 8 | . 3 8 Max Kills in Single Turn 1 | 1 1 1 Gunslinging . | . . . Exploded . | . . . Melee . | . . . Uniques/NPCs Destroyed . | . . . Combat | -11 -10 -10 -------- Run | Yrd Mat Min Hostile Shots Fired 145 | 1 19 125 Missed 43 | 1 4 38 Damage Taken 1048 | . 132 916 Core 254 | . 5 249 Absorbed by Shields . | . . . Ignored by Resistances 307 | . 39 268 Core Remaining (%) 100 | 100 . . Volleys Fired 42 | 2 20 20 Largest 2 | 2 2 2 Hottest 80 | 80 80 80 Shots Fired 81 | 3 40 38 Gun 81 | 3 40 38 Cannon . | . . . Launcher . | . . . Special . | . . . Kinetic 16 | . . 16 Thermal 65 | 3 40 22 Explosive . | . . . Electromagnetic . | . . . Robot Hit Streak 22 | 2 21 22 Robot Miss Streak 3 | . 1 3 Penetration Max . | . . . Secondary Targets 5 | . . 5 Max Gunslinging Chain 1 | . . 1 Shots Hit Robots 62 | 2 34 26 Core Hits 36 | 2 14 20 Critical Kills 2 | . . 2 Critical Parts Destroyed . | . . . Critical Strikes 2 | . . 2 Destroy 2 | . . 2 Melee Attacks . | . . . Impact . | . . . Slashing . | . . . Piercing . | . . . Sneak Attacks . | . . . Combat Hostiles . | . . . Follow-up Attacks . | . . . Damage Inflicted 685 | 23 381 281 Guns 685 | 23 381 281 Cannons . | . . . Explosions . | . . . Melee . | . . . Ramming . | . . . Kinetic 104 | . . 104 Thermal 581 | 23 381 177 Explosive . | . . . Electromagnetic . | . . . Impact . | . . . Slashing . | . . . Piercing . | . . . Highest Corruption . | . . . Average Corruption . | . . . Corruption Purged . | . . . Corruption Blocked . | . . . Overload Shots . | . . . Overflow Damage . | . . . Projectiles . | . . . Explosions . | . . . Melee . | . . . Knockbacks . | . . . Impact . | . . . Kinetic . | . . . Secondary . | . . . Self-Inflicted Damage . | . . . Shots . | . . . Rammed . | . . . Targets Rammed . | . . . Kicked . | . . . Crushed . | . . . Highest Temperature 240 | 18 240 153 Average Temperature 73 | 12 81 66 Received Heat Transfer 132 | . 72 60 Siege Activations . | . . . Robots Corrupted . | . . . Combat Hostiles . | . . . Parts Fried . | . . . Impact Corruptions . | . . . Robots Melted . | . . . Combat Hostiles . | . . . Parts Melted 1 | . 1 . Heat Transferred 1371 | 50 850 471 Parts Sabotaged . | . . . Parts Stolen . | . . . Parts Stripped . | . . . Power Chain Reactions . | . . . Alert | -11 -10 -10 ------- Run | Yrd Mat Min Peak Influence 147 | 5 147 48 Initial 48 | . . 48 Average 7 | 1 33 13 Maximum Alert Level . | . . . Low Security (%) 100 | 100 100 100 Level 1 . | . . . Level 2 . | . . . Level 3 . | . . . Level 4 . | . . . Level 5 . | . . . High Security . | . . . Max Security . | . . . Squads Dispatched . | . . . Investigation . | . . . Extermination . | . . . Reinforcement . | . . . Assault . | . . . Garrison . | . . . Intercept . | . . . Searches Triggered . | . . . Construction Impeded . | . . . Haulers Reinforced . | . . . Active Scanning Responses . | . . . Cargo Convoy Interrupts . | . . . Stealth | -11 -10 -10 --------- Run | Yrd Mat Min Distress Signals . | . . . Communications Jammed . | . . . Distress Signals . | . . . Times Spotted 26 | 2 7 17 Peak Tracking Total 15 | 2 4 15 Tactical Retreats 2 | . . 2 Traps | -11 -10 -10 ------- Run | Yrd Mat Min Traps Triggered . | . . . Indirectly . | . . . Trap Hack Attempts . | . . . Triggered . | . . . Disarmed . | . . . Reprogrammed . | . . . Reused . | . . . Traps Extracted . | . . . Installed . | . . . Triggered . | . . . Machines | -11 -10 -10 ---------- Run | Yrd Mat Min Machines Disabled . | . . . Max in Single Turn . | . . . Machines Repaired . | . . . Machines Dismantled . | . . . Machines Sabotaged . | . . . Overloaded Fab Kills . | . . . Hacking | -11 -10 -10 --------- Run | Yrd Mat Min Machines Accessed 1 | . 1 . Terminals . | . . . Fabricators . | . . . Repair Stations 1 | . 1 . Recycling Units . | . . . Scanalyzers . | . . . Garrison Access . | . . . Total Hacks 2 | . 2 . Successful 1 | . 1 . Failed 1 | . 1 . Catastrophic . | . . . Database Lockouts . | . . . Manual 1 | . 1 . Terminals . | . . . Fabricators . | . . . Repair Stations 2 | . 2 . Recycling Units . | . . . Scanalyzers . | . . . Garrison Access . | . . . Terminal Hacks . | . . . Fabricator Hacks . | . . . Repair Station Hacks 1 | . 1 . Refit 1 | . 1 . Recycling Unit Hacks . | . . . Scanalyzer . | . . . Garrison Access Hacks . | . . . Unauthorized Hacks . | . . . Terminals . | . . . Fabricators . | . . . Repair Stations . | . . . Recycling Units . | . . . Scanalyzers . | . . . Garrison Access . | . . . Data Cores Recovered . | . . . Used . | . . . Hacking Detections . | . . . Full Trace Events . | . . . Feedback Events . | . . . Feedback Blocked . | . . . Robot Schematics Acquired . | . . . Robots Built . | . . . Authchips . | . . . Time . | . . . Total Robot Build Rating . | . . . Part Schematics Acquired . | . . . Parts Built . | . . . Authchips . | . . . Time . | . . . Total Part Build Rating . | . . . Parts Repaired . | . . . Time . | . . . Parts Recycled . | . . . Recycled Matter . | . . . Retrieved Matter . | . . . Retrieved Components . | . . . Parts Scanalyzed . | . . . Part Schematics Acquired . | . . . Parts Damaged . | . . . Bothacking | -11 -10 -10 ------------ Run | Yrd Mat Min Used RIF Installer . | . . . Robots Hacked . | . . . Non-combat . | . . . Combat . | . . . Robot Hacks Applied . | . . . Relay Couplers Released . | . . . Fabnet Peak Effective % . | . . . Robots Rewired . | . . . Allies Hacked . | . . . Hacks Repelled . | . . . Allies | -11 -10 -10 -------- Run | Yrd Mat Min Total Allies . | . . . Largest Group . | . . . Highest-Rated Group . | . . . Highest-Rated Ally . | . . . Total Orders . | . . . Ally Attacks . | . . . Total Damage . | . . . Kills . | . . . Allies Corrupted . | . . . Allies Melted . | . . . Intel | -11 -10 -10 ------- Run | Yrd Mat Min Robot Analysis Total . | . . . Derelict Logs Recovered . | . . . Drone Launches . | . . . Drone Recoveries . | . . . Exploration | -11 -10 -10 ------------- Run | Yrd Mat Min Turns Passed 1556 | 1185 251 120 Spaces Moved 1064 | 871 151 42 Core 8 | 8 . . Treads . | . . . Legs 933 | 863 68 2 Wheels 123 | . 83 40 Hover . | . . . Flight . | . . . Fastest Speed 50 | 50 105 100 Average Speed 118 | 119 111 120 Slowest Speed 260 | 120 120 260 Overloaded Moves . | . . . Propulsion Burnouts . | . . . Robots Hopped . | . . . Cave-ins Triggered . | . . . Exploration Rate (%) 24 | 40 23 11 Regions Visited 2 Branch Regions 1 Pre-discovered Areas . | . . . Known Exits Taken . | . . . Unknown Exits Taken 2 | 1 1 . Scrap Searched 1 | . . 1 Spaces Dug . | . . . Terrain Destroyed . | . . . Melee . | . . . Projectile . | . . . AOE . | . . . Terrain Rammed . | . . . Walls Destroyed . | . . . Machines Disabled . | . . . Actions | -11 -10 -10 --------- Run | Yrd Mat Min Total 1281 | 1011 195 75 Wait 132 | 125 7 . Move 1062 | 870 150 42 Hop . | . . . Pick Up 19 | 7 10 2 Fast Attach 8 | 6 . 2 Attach 9 | . 2 7 Detach . | . . . Swap 3 | . 1 2 Drop 6 | 1 5 . Fire 42 | 2 20 20 Melee . | . . . Ram . | . . . Kick . | . . . Crush . | . . . Escape Stasis . | . . . Rewire . | . . . Trap . | . . . Miscellaneous . | . . . Route ------- -11/Scrapyard -10/Materials -10/Mines History --------- Turn | Location | Event 6 | -11/Scrapyard | Discovered new exit (range 14) 1071 | -11/Scrapyard | Assembled infested the area 1186 | -11/Scrapyard | Entered Materials 1187 | -10/Materials | Build established: Mutant 1413 | -10/Materials | Discovered new exit (range 7) 1437 | -10/Materials | Entered Mines 1440 | -10/Mines | Assembled infested the area 1445 | -10/Mines | Assisted by a Guerilla fighting off Assembled 1495 | -10/Mines | Core integrity fell below 50% 1512 | -10/Mines | Core integrity fell below 20% 1522 | -10/Mines | Destroyed 8 combat bots 1540 | -10/Mines | Lost 10 parts (1p4n1u4w) 1557 | -10/Mines | Destroyed by as-28347 with Assembled Rifle Last Messages --------------- 01492_ K-01 Serf destroyed. 01493_ Com. Wheel destroyed. 01501_ as-47498 destroyed. 01506_ Sml. Laser destroyed. 01509_ Com. Wheel destroyed. 01512_ Acquired 37 matter. 01518_ Acquired Flexi-carbon Leg. 01519_ Acquired 31 matter. 01545_ Searching scrap... 01545_ Found Sensor Array. 01545_ Found Heat Sink. 01545_ Found Med. Laser. 01545_ Found Assault Rifle. 01545_ Found 45 Matter. 01546_ Acquired 45 matter. 01547_ Acquired Assault Rifle. 01551_ Acquired Med. Laser. 01552_ as-45846 destroyed. 01555_ as-03690 suffers critical hit (Destroy). 01555_ as-03690 destroyed. Map ----- +----------------------------------------------------+ | ???????????????????? ????????????? | | ???????????????????? ????????????? | | ???????????????????? ????????????? | | ????????????????????# #????????????? | | ????????????????????# #????????????? | | ????????????????????# #????????????? | | ????????????????????# #????????????? | | ????????????????????# #????????????? | | ????????????????????# #????????????? | | ????????????????????# ##???????????? | | ????????????????##### %#???????????? | | ????????????????# %%#???????????? | | ????????????????# #### %#???????????? | | ????????????????# #?#"%%##??????????? | | ????????????????# #?## %"#??????????? | | ????????????????# #?# ##??????????? | | ????????????????# #?# #??????????? | | ????????????????# #?## !##?????????? | | ????????????????# #??## %##????????? | | ????????????????# #???## ##???????? | | ????????????????# #????## ##??????? | | ??????########??# #?????# | #??????? | | ??##### #??# #?????# #??????? | | ??#g #??# #?????# ##??????? | | ??#g #??# #?????#####???????? | | ??#g @#### #?????????????????? | | ??????# !a% #?????????????????? | | ??????# !######?????????????????? | | ??????########??????????????????????? | | ????????????????????????????????????? | | ????????????????????????????????????? | | ????????????????????????????????????? | | ????????????????????????????????????? | | ????????????????????????????????????? | | | | | | | | | | | | | | | | | | | | | | | | | | | | | | | | | +----------------------------------------------------+ Best States ------------- Heat Dissipation 25 Energy Generation 14 Energy Capacity 250 Matter Stores 300 Matter Capacity 300 Sight Range 16 Terrain Scan Density 10 Armor Coverage 80 Resistance: KI 20 Resistance: TH 20 Resistance: EX 20 Resistance: EM 20 Resistance: I 20 Resistance: S 20 Resistance: P 20 Evasion (%) 55 Offensive Hacking 10 Item Schematics ----------------- None Robot Schematics ------------------ None Fabricated ------------ Nothing Alien Tech Used ----------------- None Achievements -------------- Curiosity Killed The Cat Challenges ------------ None Game ------ Seed BarrageHellfireStick Manual? 0 Play Time 00:11:15 Cumulative 107.4 hours Start 2024.08.31 @ 15:02:12 End 2024.08.31 @ 15:52:54 Sessions 1 Manual Loads 0 Difficulty Adventurer Special Mode None Game No. 47 Rogue 26 Adventurer 19 Explorer 2 Win Type - Total 4 Types 2/0/1/1/0/0/0/0/0 Lore% 34 Gallery% 57 Achievement% 56 Wizard Run 0 Options --------- Layout 1 ASCII 0 Keyboard 0 Movement Mouse Keybinds 0 Fullscreen 1 Font 48/Tamsyn Map View 50x35 Zoom Use 0% Tactical HUD 1 Map Filters NONE Filters NONE Steam 1 RUN: a9b99bfb-a96f-4bf3-a902-f0785e8555f0